[Event "3rd Memorial Warakomska 2019"]
[Site "Suwalki"]
[Date "2019.08.07"]
[Round "3.19"]
[White "Stupak, Kirill"]
[Black "Szadkowski, Kamil"]
[Result "1-0"]
[ECO "E63"]
[WhiteElo "2560"]
[BlackElo "2245"]
[Annotator "ChessBase"]
[PlyCount "139"]
[EventDate "2019.08.05"]
[EventType "swiss"]
[EventCountry "POL"]
[SourceTitle "playchess.com"]
[Source "ChessBase"]
[SourceQuality "1"]
[TimeControl "40/5400+30:1800+30"]

1. Nf3 {[%emt 0:03:22]} Nf6 {[%emt 0:00:00]} 2. g3 {[%emt 0:00:12]} g6 {[%emt 0:00:34]} 3. Bg2 {[%emt 0:00:05]} Bg7 {[%emt 0:00:04]} 4. c4 {[%emt 0:00:04]} O-O {[%emt 0:00:30]} 5. O-O {[%emt 0:00:04]} d6 {[%emt 0:00:40]} 6. d4 {[%emt 0:00:11]} Nc6 {[%emt 0:01:18]} 7. Nc3 {[%emt 0:00:50]} a6 {[%emt 0:00:17]} 8. d5 {[%emt 0:00:38]} Na5 {[%emt 0:01:02]} 9. b3 {[%emt 0:00:05]} c5 {[%emt 0:02:08]} 10. dxc6 {[%emt 0:00:37]} Nxc6 {[%emt 0:00:09]} 11. Bd2 {[%emt 0:06:57]} Bf5 {[%emt 0:04:55]} 12. Nh4 {[%emt 0:03:32]} Be6 {[%emt 0:03:42]} 13. Rc1 {[%emt 0:00:21]} Rb8 {[%emt 0:14:46]} 14. Na4 {[%emt 0:04:41]} Nd7 {[%emt 0:08:24]} 15. Qe1 {[%emt 0:16:15]} f5 {[%emt 0:27:33]} 16. e4 {[%emt 0:04:52]} fxe4 {[%emt 0:02:05]} 17. Qxe4 {[%emt 0:01:02]} Bf7 {[%emt 0:02:02]} 18. Rfe1 {[%emt 0:02:15]} Nde5 {[%emt 0:04:42]} 19. h3 {[%emt 0:08:27]} e6 {[%emt 0:03:52]} 20. f4 {[%emt 0:04:43]} d5 {[%emt 0:01:01]} 21. cxd5 {[%emt 0:00:33]} exd5 {[%emt 0:00:06]} 22. Qb1 {[%emt 0:00:14]} Nd7 {[%emt 0:00:42]} 23. Nf3 {[%emt 0:00:41]} Nf6 {[%emt 0:04:04]} 24. Ng5 {[%emt 0:01:58]} Ne4 {[%emt 0:00:08]} 25. Nxe4 {[%emt 0:01:02]} dxe4 {[%emt 0:00:52]} 26. Be3 {[%emt 0:06:34]} Re8 {[%emt 0:01:28]} 27. Nc5 {[%emt 0:04:28]} Nb4 {[%emt 0:06:29]} 28. Nxe4 {[%emt 0:04:28]} Qd3 {[%emt 0:01:55]} 29. Ba7 {[%emt 0:07:58]} Rbd8 {[%emt 0:04:25]} 30. Bb6 {[%emt 0:01:05]} Bd4+ {[%emt 0:03:35]} 31. Bxd4 {[%emt 0:00:19]} Qxd4+ {[%emt 0:00:01]} 32. Kh2 {[%emt 0:03:47]} Bd5 {[%emt 0:00:04]} 33. Rcd1 {[%emt 0:08:45]} Bxe4 {[%emt 0:00:07]} 34. Rxd4 {[%emt 0:00:23]} Bxb1 {[%emt 0:00:05]} 35. Rxd8 {[%emt 0:01:15]} Rxd8 {[%emt 0:00:04]} 36. Rxb1 {[%emt 0:00:02]} Rd2 {[%emt 0:00:15]} 37. a3 {[%emt 0:00:43]} Nd5 {[%emt 0:01:25]} 38. Re1 {[%emt 0:02:27]} Kf7 {[%emt 0:00:21]} 39. Re5 {[%emt 0:01:15]} Ne7 {[%emt 0:00:17]} 40. g4 {[%emt 0:00:00]} b6 {[%emt 0:00:00]} 41. Kg1 {[%emt 0:03:52]} b5 {[%emt 0:07:51]} 42. a4 {[%emt 0:02:04]} Rd1+ {[%emt 0:05:39]} 43. Kh2 {[%emt 0:06:01]} bxa4 {[%emt 0:04:18]} 44. bxa4 {[%emt 0:00:04]} Rd4 {[%emt 0:00:04]} 45. Ra5 {[%emt 0:00:19]} Rxf4 {[%emt 0:00:13]} 46. Rxa6 {[%emt 0:00:02]} Rf2 {[%emt 0:00:08]} 47. Kg3 {[%emt 0:01:41]} Ra2 {[%emt 0:00:09]} 48. Bf1 {[%emt 0:00:37]} Ra3+ {[%emt 0:00:17]} 49. Kf4 {[%emt 0:00:44]} h6 {[%emt 0:01:15]} 50. h4 {[%emt 0:05:45]} g5+ {[%emt 0:00:05]} 51. hxg5 {[%emt 0:00:06]} Ng6+ {[%emt 0:00:05]} 52. Ke4 {[%emt 0:00:07]} hxg5 {[%emt 0:00:05]} 53. Bc4+ {[%emt 0:00:19]} Kg7 {[%emt 0:00:17]} 54. Kf5 {[%emt 0:01:15]} Nh4+ {[%emt 0:00:20]} 55. Kxg5 {[%emt 0:00:11]} Nf3+ {[%emt 0:00:02]} 56. Kf4 {[%emt 0:00:15]} Nh4 {[%emt 0:00:22]} 57. Bd5 {[%emt 0:00:43]} Ng6+ {[%emt 0:00:42]} 58. Kg5 {[%emt 0:00:09]} Ne7 {[%emt 0:00:05]} 59. Be4 {[%emt 0:00:50]} Re3 {[%emt 0:00:39]} 60. Kf4 {[%emt 0:00:08]} Ra3 {[%emt 0:00:16]} 61. g5 {[%emt 0:00:33]} Kf7 {[%emt 0:00:07]} 62. a5 {[%emt 0:00:46]} Ra1 {[%emt 0:00:05]} 63. Rf6+ {[%emt 0:00:53]} Kg7 {[%emt 0:00:40]} 64. a6 {[%emt 0:00:20]} Ra4 {[%emt 0:00:10]} 65. Rd6 {[%emt 0:00:51]} Kf7 {[%emt 0:00:07]} 66. g6+ {[%emt 0:05:52]} Kg7 {[%emt 0:00:36]} 67. Ke5 {[%emt 0:03:40]} Ra5+ {[%emt 0:00:13]} 68. Ke6 {[%emt 0:01:13]} Nxg6 {[%emt 0:00:06]} 69. Bxg6 {[%emt 0:00:04]} Kxg6 {[%emt 0:00:06]} 70. Rb6 {[%emt 0:00:13]} 1-0

[Event "3rd Memorial Warakomska 2019"]
[Site "Suwalki"]
[Date "2019.08.07"]
[Round "3.20"]
[White "Sharankov, Grigory"]
[Black "Jakubowski, Krzysztof"]
[Result "0-1"]
[ECO "A81"]
[WhiteElo "2221"]
[BlackElo "2528"]
[Annotator "ChessBase"]
[PlyCount "126"]
[EventDate "2019.08.05"]
[EventType "swiss"]
[EventCountry "POL"]
[SourceTitle "playchess.com"]
[Source "ChessBase"]
[SourceQuality "1"]
[TimeControl "40/5400+30:1800+30"]

1. d4 {[%emt 0:00:00]} f5 {[%emt 0:00:00]} 2. g3 {[%emt 0:00:32]} Nf6 {[%emt 0:00:00]} 3. Bg2 {[%emt 0:00:11]} d6 {[%emt 0:00:10]} 4. Nh3 {[%emt 0:01:25]} c6 {[%emt 0:03:03]} 5. c3 {[%emt 0:01:43]} Qc7 {[%emt 0:07:11]} 6. Nd2 {[%emt 0:02:12]} e5 {[%emt 0:00:18]} 7. dxe5 {[%emt 0:04:16]} dxe5 {[%emt 0:00:08]} 8. e4 {[%emt 0:00:47]} h6 {[%emt 0:03:15]} 9. exf5 {[%emt 0:06:22]} Bxf5 {[%emt 0:00:31]} 10. Qe2 {[%emt 0:09:02]} Nbd7 {[%emt 0:02:55]} 11. Ne4 {[%emt 0:01:33]} O-O-O {[%emt 0:06:50]} 12. f3 {[%emt 0:00:18]} Bc5 {[%emt 0:29:39]} 13. Be3 {[%emt 0:13:06]} Nxe4 {[%emt 0:23:10]} 14. fxe4 {[%emt 0:00:16]} Be6 {[%emt 0:00:06]} 15. O-O {[%emt 0:19:46]} Qb6 {[%emt 0:01:01]} 16. Bxc5 {[%emt 0:00:02]} Nxc5 {[%emt 0:00:07]} 17. Kh1 {[%emt 0:00:05]} Na4 {[%emt 0:00:32]} 18. Qc2 {[%emt 0:02:57]} Qa6 {[%emt 0:03:01]} 19. Ng1 {[%emt 0:02:14]} Nc5 {[%emt 0:00:36]} 20. Nf3 {[%emt 0:04:24]} Nd3 {[%emt 0:02:19]} 21. b3 {[%emt 0:02:29]} Qb6 {[%emt 0:02:11]} 22. Nh4 {[%emt 0:06:08]} Qe3 {[%emt 0:03:20]} 23. Rf3 {[%emt 0:06:02]} Qxe4 {[%emt 0:01:19]} 24. Raf1 {[%emt 0:03:37]} Qh7 {[%emt 0:02:41]} 25. c4 {[%emt 0:01:17]} g5 {[%emt 0:02:22]} 26. Re3 {[%emt 0:06:19]} gxh4 {[%emt 0:02:32]} 27. Be4 {[%emt 0:00:01]} Nb4 {[%emt 0:02:51]} 28. Bxh7 {[%emt 0:04:49]} Nxc2 {[%emt 0:00:07]} 29. Bxc2 {[%emt 0:00:02]} Rd2 {[%emt 0:00:11]} 30. Rxe5 {[%emt 0:01:52]} Rxc2 {[%emt 0:00:12]} 31. Rxe6 {[%emt 0:00:01]} hxg3 {[%emt 0:00:09]} 32. hxg3 {[%emt 0:00:08]} Rxa2 {[%emt 0:00:05]} 33. Kg1 {[%emt 0:01:59]} a5 {[%emt 0:02:24]} 34. Rf2 {[%emt 0:00:30]} Ra3 {[%emt 0:00:17]} 35. Re5 {[%emt 0:00:32]} Kb8 {[%emt 0:01:20]} 36. Kh2 {[%emt 0:00:19]} Ka7 {[%emt 0:00:19]} 37. Rb2 {[%emt 0:00:38]} Rg8 {[%emt 0:00:31]} 38. Kh3 {[%emt 0:00:28]} Rg6 {[%emt 0:00:40]} 39. Rf5 {[%emt 0:00:37]} Ka6 {[%emt 0:00:12]} 40. Rf8 {[%emt 0:00:00]} Kb6 {[%emt 0:00:00]} 41. Rf5 {[%emt 0:04:40]} Rg5 {[%emt 0:11:29]} 42. Rf7 {[%emt 0:10:04]} Re5 {[%emt 0:03:15]} 43. b4 {[%emt 0:04:04]} a4 {[%emt 0:04:07]} 44. Rd2 {[%emt 0:11:23]} Rb3 {[%emt 0:00:33]} 45. c5+ {[%emt 0:00:10]} Ka6 {[%emt 0:01:35]} 46. Rd8 {[%emt 0:01:22]} Rxb4 {[%emt 0:01:21]} 47. Ra8+ {[%emt 0:00:01]} Kb5 {[%emt 0:00:05]} 48. Rxb7+ {[%emt 0:00:05]} Kc4 {[%emt 0:00:58]} 49. Rh7 {[%emt 0:01:53]} Rh5+ {[%emt 0:00:34]} 50. Kg4 {[%emt 0:00:20]} Rxc5 {[%emt 0:00:57]} 51. Rxh6 {[%emt 0:00:28]} Kb3+ {[%emt 0:00:07]} 52. Kh3 {[%emt 0:00:19]} Rc1 {[%emt 0:00:45]} 53. Rf6 {[%emt 0:00:46]} c5 {[%emt 0:00:08]} 54. Rf3+ {[%emt 0:01:11]} Kb2 {[%emt 0:00:14]} 55. Rf2+ {[%emt 0:00:20]} Rc2 {[%emt 0:00:34]} 56. Rxc2+ {[%emt 0:00:39]} Kxc2 {[%emt 0:00:04]} 57. g4 {[%emt 0:00:03]} Kb2 {[%emt 0:01:12]} 58. g5 {[%emt 0:01:30]} a3 {[%emt 0:00:05]} 59. g6 {[%emt 0:00:22]} Rb7 {[%emt 0:00:06]} 60. Rf8 {[%emt 0:00:18]} a2 {[%emt 0:02:17]} 61. Rf2+ {[%emt 0:01:01]} Ka3 {[%emt 0:00:19]} 62. Rf3+ {[%emt 0:00:12]} Kb4 {[%emt 0:00:17]} 63. Rf7 {[%emt 0:00:28]} Rb6 {[%emt 0:01:23]} 0-1

[Event "3rd Memorial Warakomska 2019"]
[Site "Suwalki"]
[Date "2019.08.07"]
[Round "3.21"]
[White "Warakomski, Tomasz"]
[Black "Antolak, Julia"]
[Result "1/2-1/2"]
[ECO "B80"]
[WhiteElo "2497"]
[BlackElo "2258"]
[Annotator "ChessBase"]
[PlyCount "40"]
[EventDate "2019.08.05"]
[EventType "swiss"]
[EventCountry "POL"]
[SourceTitle "playchess.com"]
[Source "ChessBase"]
[SourceQuality "1"]
[TimeControl "40/5400+30:1800+30"]

1. e4 {[%emt 0:00:00]} c5 {[%emt 0:05:29]} 2. Nf3 {[%emt 0:00:34]} e6 {[%emt 0:00:06]} 3. d4 {[%emt 0:13:20]} cxd4 {[%emt 0:00:08]} 4. Nxd4 {[%emt 0:00:05]} Nf6 {[%emt 0:00:05]} 5. Nc3 {[%emt 0:00:03]} d6 {[%emt 0:00:07]} 6. Qf3 {[%emt 0:08:37]} Nc6 {[%emt 0:04:09]} 7. Nxc6 {[%emt 0:02:19]} bxc6 {[%emt 0:00:07]} 8. e5 {[%emt 0:01:27]} Nd5 {[%emt 0:05:53]} 9. exd6 {[%emt 0:01:36]} Bxd6 {[%emt 0:01:10]} 10. Bc4 {[%emt 0:23:36]} O-O {[%emt 0:03:43]} 11. Bd2 {[%emt 0:01:25]} Qc7 {[%emt 0:16:33]} 12. Ne4 {[%emt 0:03:33]} Be5 {[%emt 0:04:14]} 13. Rb1 {[%emt 0:03:31]} Rb8 {[%emt 0:04:07]} 14. h4 {[%emt 0:06:52]} Rxb2 {[%emt 0:08:28]} 15. O-O {[%emt 0:02:52]} Rxb1 {[%emt 0:07:00]} 16. Rxb1 {[%emt 0:00:05]} Bd7 {[%emt 0:01:11]} 17. Nc5 {[%emt 0:02:55]} Bd6 {[%emt 0:05:51]} 18. Ne4 {[%emt 0:05:29]} Be5 {[%emt 0:02:34]} 19. Nc5 {[%emt 0:03:23]} Bd6 {[%emt 0:00:51]} 20. Ne4 {[%emt 0:00:19]} Be5 {[%emt 0:01:22]} 1/2-1/2

[Event "3rd Memorial Warakomska 2019"]
[Site "Suwalki"]
[Date "2019.08.07"]
[Round "3.22"]
[White "Malakhatko, Vadim"]
[Black "Jaroch, Karol"]
[Result "1-0"]
[ECO "E16"]
[WhiteElo "2462"]
[BlackElo "2221"]
[Annotator "ChessBase"]
[PlyCount "65"]
[EventDate "2019.08.05"]
[EventType "swiss"]
[EventCountry "POL"]
[SourceTitle "playchess.com"]
[Source "ChessBase"]
[SourceQuality "1"]
[TimeControl "40/5400+30:1800+30"]

1. c4 {[%emt 0:01:06]} Nf6 {[%emt 0:00:00]} 2. Nf3 {[%emt 0:00:53]} e6 {[%emt 0:00:18]} 3. g3 {[%emt 0:00:08]} b6 {[%emt 0:00:05]} 4. Bg2 {[%emt 0:00:07]} Bb7 {[%emt 0:00:04]} 5. d4 {[%emt 0:00:37]} Bb4+ {[%emt 0:00:46]} 6. Bd2 {[%emt 0:00:07]} Bxd2+ {[%emt 0:00:33]} 7. Qxd2 {[%emt 0:00:06]} d6 {[%emt 0:00:32]} 8. Nc3 {[%emt 0:03:48]} Nbd7 {[%emt 0:05:33]} 9. d5 {[%emt 0:00:25]} O-O {[%emt 0:08:03]} 10. O-O {[%emt 0:03:26]} Nc5 {[%emt 0:11:18]} 11. Nd4 {[%emt 0:08:17]} e5 {[%emt 0:01:20]} 12. Nc2 {[%emt 0:00:06]} a5 {[%emt 0:00:18]} 13. e4 {[%emt 0:04:46]} c6 {[%emt 0:13:09]} 14. Rfd1 {[%emt 0:18:26]} cxd5 {[%emt 0:00:24]} 15. cxd5 {[%emt 0:00:04]} Qd7 {[%emt 0:04:15]} 16. f3 {[%emt 0:01:19]} Ba6 {[%emt 0:11:32]} 17. Qe3 {[%emt 0:05:04]} Rfc8 {[%emt 0:01:27]} 18. h4 {[%emt 0:05:16]} Rc7 {[%emt 0:14:53]} 19. Rd2 {[%emt 0:07:03]} Nh5 {[%emt 0:13:06]} 20. Kh2 {[%emt 0:03:18]} f5 {[%emt 0:00:50]} 21. Qg5 {[%emt 0:04:05]} g6 {[%emt 0:06:47]} 22. Bh3 {[%emt 0:00:56]} Ng7 {[%emt 0:04:46]} 23. Ne3 {[%emt 0:01:39]} Qd8 {[%emt 0:00:50]} 24. Qxd8+ {[%emt 0:07:25]} Rxd8 {[%emt 0:00:03]} 25. exf5 {[%emt 0:00:09]} Rf7 {[%emt 0:00:33]} 26. g4 {[%emt 0:06:06]} gxf5 {[%emt 0:00:13]} 27. gxf5 {[%emt 0:00:25]} Nd3 {[%emt 0:01:12]} 28. Ne4 {[%emt 0:04:33]} Nf4 {[%emt 0:00:21]} 29. Ng5 {[%emt 0:00:57]} Rff8 {[%emt 0:00:33]} 30. Ne6 {[%emt 0:01:26]} Ngxe6 {[%emt 0:00:38]} 31. dxe6 {[%emt 0:04:31]} Rfe8 {[%emt 0:00:07]} 32. Rg1+ {[%emt 0:03:02]} Kf8 {[%emt 0:00:32]} 33. Nd5 {[%emt 0:00:08]} 1-0

[Event "3rd Memorial Warakomska 2019"]
[Site "Suwalki"]
[Date "2019.08.07"]
[Round "3.23"]
[White "Skawinski, Arkadiusz"]
[Black "Sowul, Bartosz"]
[Result "1/2-1/2"]
[ECO "B27"]
[WhiteElo "2398"]
[BlackElo "2210"]
[Annotator "ChessBase"]
[PlyCount "61"]
[EventDate "2019.08.05"]
[EventType "swiss"]
[EventCountry "POL"]
[SourceTitle "playchess.com"]
[Source "ChessBase"]
[SourceQuality "1"]
[TimeControl "40/5400+30:1800+30"]

1. e4 {[%emt 0:00:00]} c5 {[%emt 0:00:00]} 2. Nf3 {[%emt 0:00:00]} g6 {[%emt 0:00:00]} 3. d4 {[%emt 0:00:00]} cxd4 {[%emt 0:00:00]} 4. Qxd4 {[%emt 0:00:00]} Nf6 {[%emt 0:00:00]} 5. Nc3 {[%emt 0:00:00]} Nc6 {[%emt 0:00:06]} 6. Qa4 {[%emt 0:00:00]} d6 {[%emt 0:00:08]} 7. e5 {[%emt 0:00:00]} dxe5 {[%emt 0:00:10]} 8. Nxe5 {[%emt 0:00:00]} Bd7 {[%emt 0:00:08]} 9. Nxd7 {[%emt 0:00:04]} Nxd7 {[%emt 0:00:08]} 10. Be3 {[%emt 0:00:04]} Bg7 {[%emt 0:17:41]} 11. Rd1 {[%emt 0:00:05]} O-O {[%emt 0:14:41]} 12. Bb5 {[%emt 0:12:41]} Qc8 {[%emt 0:13:46]} 13. Nd5 {[%emt 0:01:36]} Nb6 {[%emt 0:02:23]} 14. Bxc6 {[%emt 0:18:24]} Nxa4 {[%emt 0:00:44]} 15. Nxe7+ {[%emt 0:00:04]} Kh8 {[%emt 0:00:07]} 16. Nxc8 {[%emt 0:00:04]} Nxb2 {[%emt 0:01:56]} 17. Rd7 {[%emt 0:08:06]} bxc6 {[%emt 0:06:15]} 18. Nxa7 {[%emt 0:01:37]} Nc4 {[%emt 0:10:17]} 19. O-O {[%emt 0:02:23]} Rfe8 {[%emt 0:12:11]} 20. Bc5 {[%emt 0:17:16]} Re5 {[%emt 0:06:36]} 21. Bd4 {[%emt 0:00:55]} Rd5 {[%emt 0:00:07]} 22. Rxd5 {[%emt 0:00:08]} cxd5 {[%emt 0:00:07]} 23. Bc5 {[%emt 0:00:35]} Nb2 {[%emt 0:11:56]} 24. f3 {[%emt 0:04:21]} d4 {[%emt 0:00:58]} 25. Rb1 {[%emt 0:10:54]} Na4 {[%emt 0:00:06]} 26. Bd6 {[%emt 0:01:09]} d3 {[%emt 0:01:14]} 27. Nb5 {[%emt 0:00:06]} dxc2 {[%emt 0:00:54]} 28. Rc1 {[%emt 0:00:20]} Rc8 {[%emt 0:00:34]} 29. Nc7 {[%emt 0:02:42]} Rd8 {[%emt 0:00:27]} 30. Nb5 {[%emt 0:10:57]} Rc8 {[%emt 0:00:04]} 31. Nc7 {[%emt 0:00:09]} 1/2-1/2

[Event "3rd Memorial Warakomska 2019"]
[Site "Suwalki"]
[Date "2019.08.07"]
[Round "3.24"]
[White "Karavade, Eesha"]
[Black "Zaika, Daniil"]
[Result "1/2-1/2"]
[ECO "B52"]
[WhiteElo "2355"]
[BlackElo "2216"]
[Annotator "NA"]
[PlyCount "106"]
[EventDate "2019.08.05"]
[EventType "swiss"]
[EventCountry "POL"]
[SourceTitle "playchess.com"]
[Source "ChessBase"]
[SourceQuality "1"]
[TimeControl "40/5400+30:1800+30"]

1. e4 {[%emt 0:00:00]} c5 {[%emt 0:00:00]} 2. Nf3 {[%emt 0:00:02]} d6 {[%emt 0:01:30]} 3. Bb5+ {[%emt 0:00:14]} Bd7 {[%emt 0:00:08]} 4. Bxd7+ {[%emt 0:00:25]} Qxd7 {[%emt 0:00:28]} 5. c4 {[%emt 0:00:22]} e5 {[%emt 0:00:42]} 6. Nc3 {[%emt 0:04:18]} Nc6 {[%emt 0:00:42]} 7. O-O {[%emt 0:00:09] B52: Sicilian: Moscow Variation with 3...Bd7} Be7 {[%emt 0:00:10]} 8. d3 {[%emt 0:02:17]} Bd8 {[%emt 0:00:22]} 9. a3 {[%emt 0:08:01]} a5 {[%emt 0:05:20]} 10. Rb1 {[%emt 0:08:57]} Nge7 {[%emt 0:02:34]} 11. Ne1 $146 {[%emt 0:01:50]} ({Predecessor:} 11. Bd2 O-O 12. b3 h6 13. Nd5 f5 14. b4 fxe4 15. dxe4 axb4 16. axb4 {½-½ (44) Muzychuk,M (2540)-Aronian,L (2767) Caleta 2019}) 11... O-O {[%emt 0:03:43]} 12. f4 {[%emt 0:01:49]} f5 {[%emt 0:13:08]} 13. fxe5 {[%emt 0:07:03]} Nxe5 {[%emt 0:15:58]} 14. Nf3 {[%emt 0:00:08]} fxe4 {[%emt 0:08:50]} 15. Nxe5 {[%emt 0:05:41]} Rxf1+ {[%emt 0:00:19]} 16. Qxf1 {[%emt 0:00:02]} dxe5 {[%emt 0:00:14]} 17. Nxe4 {[%emt 0:00:16]} Nf5 {[%emt 0:10:10]} 18. Bd2 {[%emt 0:01:09]} Bc7 {[%emt 0:07:10]} 19. Bc3 {[%emt 0:00:14]} b6 {[%emt 0:05:47]} 20. Qf3 {[%emt 0:01:30]} Rf8 {[%emt 0:02:53]} 21. Rf1 {[%emt 0:03:29]} Qe7 $14 {[%emt 0:01:02]} 22. Qh3 {[%emt 0:01:03]} g6 {[%emt 0:11:42]} 23. Bd2 {[%emt 0:02:50]} Nd4 {[%emt 0:00:09]} 24. Re1 {[%emt 0:03:48]} Qf7 {[%emt 0:01:45]} 25. Qg4 {[%emt 0:00:06]} Qf5 {[%emt 0:03:51]} 26. Qd1 {[%emt 0:00:20]} Ne6 {[%emt 0:00:20]} 27. Rf1 {[%emt 0:04:36]} Qxf1+ {[%emt 0:00:58]} 28. Qxf1 {[%emt 0:00:02]} Rxf1+ {[%emt 0:00:06]} 29. Kxf1 {[%emt 0:00:05]} Kf7 {[%emt 0:02:04]} 30. Kf2 {[%emt 0:00:38]} h5 {[%emt 0:00:20]} 31. h3 {[%emt 0:00:56]} Bd8 {[%emt 0:01:04]} 32. Be3 {[%emt 0:00:41]} Ng7 {[%emt 0:01:45]} 33. g4 {[%emt 0:02:37]} hxg4 {[%emt 0:00:03]} 34. hxg4 {[%emt 0:00:07]} Ne6 {[%emt 0:00:55]} 35. Kf3 {[%emt 0:02:47]} Be7 {[%emt 0:00:37]} 36. Nc3 {[%emt 0:02:17]} Ng7 {[%emt 0:00:06]} 37. Na4 {[%emt 0:08:22]} Bd8 {[%emt 0:00:06]} 38. Bd2 {[%emt 0:00:09]} Ke6 {[%emt 0:01:13]} 39. b4 {[%emt 0:00:23]} axb4 {[%emt 0:00:03]} 40. axb4 {[%emt 0:00:00]} cxb4 {[%emt 0:00:00]} 41. Bxb4 {[%emt 0:00:11]} Ne8 {[%emt 0:00:46]} 42. Nc3 {[%emt 0:00:47]} Nf6 {[%emt 0:03:25]} 43. Ne4 {[%emt 0:00:45]} Nd7 {[%emt 0:09:42]} 44. Ba3 {[%emt 0:00:26]} Bc7 {[%emt 0:00:22]} 45. Nc3 {[%emt 0:03:02]} Bd6 {[%emt 0:02:13]} 46. Bxd6 {[%emt 0:03:30]} Kxd6 {[%emt 0:00:07]} 47. Ne4+ {[%emt 0:01:10]} Ke6 {[%emt 0:00:09]} 48. Ke3 {[%emt 0:00:24]} Nc5 {[%emt 0:02:32]} 49. Nxc5+ {[%emt 0:02:47]} bxc5 {[%emt 0:00:03]} 50. Ke4 {[%emt 0:00:07]} Kd6 {[%emt 0:00:05]} 51. Ke3 {[%emt 0:00:24]} Ke6 {[%emt 0:00:16]} 52. Ke4 {[%emt 0:00:06]} Kd6 {[%emt 0:00:03]} 53. Ke3 {[%emt 0:00:05]} Ke6 1/2-1/2

[Event "3rd Memorial Warakomska 2019"]
[Site "Suwalki"]
[Date "2019.08.07"]
[Round "3.25"]
[White "Kowalski, Igor"]
[Black "Kukula, Pawel"]
[Result "1-0"]
[ECO "A96"]
[WhiteElo "2320"]
[BlackElo "2209"]
[Annotator "NA"]
[PlyCount "67"]
[EventDate "2019.08.05"]
[EventType "swiss"]
[EventCountry "POL"]
[SourceTitle "playchess.com"]
[Source "ChessBase"]
[SourceQuality "1"]
[TimeControl "40/5400+30:1800+30"]

1. d4 {[%emt 0:00:00]} f5 {[%emt 0:00:00]} 2. g3 {[%emt 0:00:00]} Nf6 {[%emt 0:00:00]} 3. Bg2 {[%emt 0:00:00]} e6 {[%emt 0:00:09]} 4. Nf3 {[%emt 0:00:00]} d6 {[%emt 0:00:23]} 5. O-O {[%emt 0:00:00]} Be7 {[%emt 0:00:05]} 6. c4 {[%emt 0:00:02]} O-O {[%emt 0:00:09]} 7. Nc3 {[%emt 0:00:02]} Ne4 {[%emt 0:00:58]} 8. Qc2 {[%emt 0:00:05]} Nxc3 {[%emt 0:00:24]} 9. Qxc3 {[%emt 0:00:03]} Bf6 {[%emt 0:01:08]} 10. Rd1 {[%emt 0:00:46] A96: Classical Dutch: Fluid Systems: Early deviations} (10. b3 Nc6 11. Bb2 e5 12. Qd2 Qe8 13. e3 a5 14. d5 Nd8 15. Ne1 e4 16. Bxf6 Rxf6 17. f3 exf3 18. Nxf3 Nf7 19. Rae1 Bd7 20. Qd4 Qf8 21. e4 f4 22. gxf4 Rxf4 23. Qe3 Nh6 24. c5 {½-½ (24) Neiksans,A (2576)-Stopa,J (2528) Wunsiedel 2015}) 10... Qe7 {[%emt 0:00:21]} 11. Qa3 {[%emt 0:04:45]} Nd7 {[%emt 0:02:28]} 12. b4 $146 {[%emt 0:08:43]} ({Predecessor:} 12. Bf4 g5 13. Be3 e5 14. dxe5 Nxe5 15. Nxg5 Bxg5 16. Bxg5 Qxg5 17. f4 Qf6 18. fxe5 Qxe5 {½-½ (46) Szpak,N (1615)-Mathews,M (2129) IECC email 2000}) 12... c6 {[%emt 0:04:37]} 13. Bb2 {[%emt 0:02:49]} Nb6 {[%emt 0:16:19]} 14. Qb3 {[%emt 0:16:46]} d5 {[%emt 0:00:47]} 15. Nd2 {[%emt 0:00:14]} e5 {[%emt 0:33:49]} 16. dxe5 {[%emt 0:03:39]} Bxe5 {[%emt 0:00:05]} 17. cxd5 {[%emt 0:00:04]} Bxb2 {[%emt 0:00:38]} 18. dxc6+ {[%emt 0:00:26]} Be6 {[%emt 0:00:39]} 19. Qxb2 {[%emt 0:00:07]} bxc6 {[%emt 0:00:06]} 20. Bxc6 {[%emt 0:00:35]} Rac8 {[%emt 0:00:18]} 21. b5 $18 {[%emt 0:03:25]} f4 {[%emt 0:00:03]} 22. Nf3 {[%emt 0:01:21]} fxg3 {[%emt 0:00:13]} 23. hxg3 {[%emt 0:00:07]} Kh8 {[%emt 0:09:47]} 24. Rd4 {[%emt 0:05:12]} Bc4 {[%emt 0:05:59]} 25. Re4 {[%emt 0:01:21]} Qf7 {[%emt 0:00:33]} 26. Qe5 {[%emt 0:02:44]} Rcd8 {[%emt 0:09:40]} 27. Rf4 {[%emt 0:01:39]} Qg8 {[%emt 0:01:20]} 28. Rh4 {[%emt 0:04:04]} Rf6 {[%emt 0:02:44]} 29. a4 {[%emt 0:04:56]} h6 {[%emt 0:01:23]} 30. a5 {[%emt 0:18:33]} Nc8 {[%emt 0:00:11]} 31. Rc1 {[%emt 0:00:08]} Re6 {[%emt 0:04:32]} 32. Qc3 {[%emt 0:00:20]} Bxe2 {[%emt 0:01:08]} 33. Nd4 {[%emt 0:00:13]} Qf7 {[%emt 0:04:38]} 34. Nxe6 {[%emt 0:00:07]} 1-0

[Event "3rd Memorial Warakomska 2019"]
[Site "Suwalki"]
[Date "2019.08.07"]
[Round "3.26"]
[White "Paszewski, Mateusz"]
[Black "Lisowski, Krzysztof"]
[Result "1/2-1/2"]
[ECO "E20"]
[WhiteElo "2324"]
[BlackElo "2187"]
[Annotator "NA"]
[PlyCount "69"]
[EventDate "2019.08.05"]
[EventType "swiss"]
[EventCountry "POL"]
[SourceTitle "playchess.com"]
[Source "ChessBase"]
[SourceQuality "1"]
[TimeControl "40/5400+30:1800+30"]

1. d4 {[%emt 0:00:00]} Nf6 {[%emt 0:01:05]} 2. c4 {[%emt 0:00:00]} e6 {[%emt 0:00:16]} 3. Nc3 {[%emt 0:00:00]} Bb4 {[%emt 0:00:13]} 4. f3 {[%emt 0:00:00]} d5 {[%emt 0:08:15]} 5. a3 {[%emt 0:00:32]} Bxc3+ {[%emt 0:08:20]} 6. bxc3 {[%emt 0:00:16]} O-O {[%emt 0:12:22]} 7. cxd5 {[%emt 0:01:28]} exd5 {[%emt 0:00:54]} 8. e3 {[%emt 0:00:05]} Bf5 {[%emt 0:27:19]} 9. Bd3 {[%emt 0:01:52]} Bxd3 {[%emt 0:05:16]} 10. Qxd3 {[%emt 0:00:12]} c5 {[%emt 0:05:08]} 11. Ne2 {[%emt 0:01:35]} Nc6 {[%emt 0:02:21]} 12. O-O {[%emt 0:00:16]} Re8 {[%emt 0:04:12]} 13. Ng3 {[%emt 0:02:57]} Rc8 {[%emt 0:01:06]} 14. Ra2 {[%emt 0:16:11]} Rc7 {[%emt 0:02:55]} 15. Re2 {[%emt 0:06:36]} Rce7 {[%emt 0:05:48]} 16. Nf5 {[%emt 0:08:14]} Re6 {[%emt 0:01:04]} 17. g4 {[%emt 0:01:19]} g6 {[%emt 0:05:06]} 18. Ng3 {[%emt 0:01:44]} Na5 {[%emt 0:04:03]} 19. Qd1 {[%emt 0:33:43]} Nc4 {[%emt 0:02:32]} 20. g5 {[%emt 0:00:31]} Nd7 {[%emt 0:00:37]} 21. e4 {[%emt 0:00:29]} Qa5 {[%emt 0:00:47]} 22. Qd3 {[%emt 0:07:24]} Ndb6 {[%emt 0:00:06]} 23. Rfe1 {[%emt 0:03:35]} Qb5 {[%emt 0:01:01]} 24. Qc2 {[%emt 0:05:56]} Rc8 {[%emt 0:00:25]} 25. exd5 {[%emt 0:03:53]} Rxe2 {[%emt 0:00:05]} 26. Qxe2 {[%emt 0:00:02]} cxd4 {[%emt 0:00:45]} 27. Ne4 {[%emt 0:00:24]} Nxd5 {[%emt 0:00:34]} 28. cxd4 {[%emt 0:00:14]} Qb6 {[%emt 0:00:51]} 29. Nc5 {[%emt 0:01:08]} Nd6 {[%emt 0:00:30]} 30. Qa2 {[%emt 0:01:19]} Qc6 {[%emt 0:00:19]} 31. Ne4 {[%emt 0:01:58]} Nc4 {[%emt 0:00:16]} 32. Nc5 {[%emt 0:00:29]} Nd6 {[%emt 0:00:25]} 33. Ne4 {[%emt 0:00:18]} Nc4 {[%emt 0:00:05]} 34. Nc5 Nd6 35. Nd7 1/2-1/2